fUSD/lending_fUSD_20260406
["ID","MTS","AMOUNT","RATE_DAILY","PERIOD"]
[419908983,1775497760762,-150.0,0.00010435,2]
[419908984,1775497760784,-150.0,0.00010435,2]
[419908985,1775497760808,-150.0,0.00010442,2]
[419908986,1775497760831,-150.0,0.00010446,2]
[419908987,1775497760852,-150.0,0.00010457,2]
[419908988,1775497760872,-150.0,0.00010457,2]
[419908989,1775497760894,-150.0,0.00010462,2]
[419908990,1775497760915,-150.0,0.00010465,2]
[419908991,1775497760942,-150.0,0.00010467,2]
[419908992,1775497760965,-150.0,0.00010471,2]
[419908993,1775497760988,-150.0,0.00010471,2]
[419908994,1775497761011,-150.0,0.00010481,2]
[419908995,1775497761034,-150.0,0.00010483,2]
[419908996,1775497761055,-150.0,0.00010491,2]
[419908997,1775497761078,-150.0,0.00010495,2]
[419908998,1775497761100,-150.0,0.000105,2]
[419908999,1775497761124,-150.0,0.00010504,2]
[419909000,1775497761146,-150.0,0.00010507,2]
[419909001,1775497761169,-150.0,0.00010507,2]
[419909002,1775497761191,-150.0,0.00010516,2]
[419909003,1775497761213,-150.0,0.00010525,2]
[419909004,1775497761236,-150.0,0.00010525,2]
[419909005,1775497761257,-150.0,0.00010525,2]
[419909006,1775497761280,-150.0,0.00010525,2]
[419909007,1775497761302,-150.0,0.00010525,2]
[419909008,1775497761324,-150.0,0.00010533,2]
[419909009,1775497761348,-171.76237,0.00010535,2]
[419909010,1775497761371,-150.0,0.00010543,2]
[419909011,1775497761394,-150.0,0.00010545,2]
[419909012,1775497761417,-150.0,0.00010551,2]
[419909013,1775497761442,-327.966578,0.00010552,2]
[419909014,1775497761465,-150.0,0.00010555,2]
[419909015,1775497761489,-150.0,0.00010558,2]
[419909016,1775497761511,-150.0,0.00010566,2]
[419909017,1775497761542,-150.0,0.00010566,2]
[419909018,1775497761564,-500.26271237,0.00010573,2]
[419909019,1775497761587,-166.15891761,0.00010573,2]
[419909020,1775497761609,-500.0,0.00010573,2]
[419909021,1775497761633,-500.0,0.00010573,2]
[419909022,1775497761656,-500.0,0.00010573,2]
[419909023,1775497761679,-164.42551869,0.00010573,2]
[419909024,1775497761702,-245.86073687,0.00010573,2]
[419909025,1775497761725,-304.93834689,0.00010573,2]
[419909026,1775497761749,-167.73939669,0.00010573,2]
[419909027,1775497761772,-500.0,0.00010573,2]
[419909028,1775497761796,-500.0,0.00010573,2]
[419909029,1775497761819,-170.09504983,0.00010573,2]
[419909030,1775497761843,-150.0,0.00010579,2]
[419909031,1775497761866,-150.0,0.00010579,2]
[419909032,1775497761888,-150.0,0.00010579,2]
[419909033,1775497761910,-150.0,0.00010585,2]
[419909034,1775497761933,-150.0,0.00010586,2]
[419909035,1775497761957,-150.0,0.00010587,2]
[419909036,1775497761979,-150.0,0.00010592,2]
[419909037,1775497762002,-150.0,0.00010592,2]
[419909038,1775497762028,-24859.02822842,0.00010598,2]
[419909039,1775497773177,-160.0,0.00010033,2]
[419909040,1775497773202,-160.809647,0.00010033,2]
[419909041,1775497773226,-161.619294,0.00010033,2]
[419909042,1775497773248,-10083.3972134,0.00010044,2]
[419909043,1775497773274,-219.285882,0.00010534,2]
[419909044,1775497773300,-88829.44552761,0.00010598,2]
[419909045,1775497777778,-2353.11310115,0.00010598,2]
[419909061,1775497834331,-500.0,0.00010573,2]
[419909062,1775497834341,-253.6781311,0.00010573,2]
[419909063,1775497834353,-246.3218689,0.00010573,2]
[419909064,1775497834362,-167.64405758,0.00010573,2]
[419909065,1775497834372,-500.0,0.00010573,2]
[419909066,1775497834381,-332.51407352,0.00010573,2]
[419909067,1775497834393,-167.48592648,0.00010573,2]
[419909068,1775497834403,-332.51407352,0.00010573,2]
[419909069,1775497834414,-42.99990532,0.00010573,2]
[419909070,1775497834424,-500.0,0.00010573,2]
[419909071,1775497834439,-957.36009468,0.00010597,2]
[419909072,1775497834455,-242.63990532,0.00010597,2]
[419909073,1775497834465,-15771.38744282,0.00010598,2]
[419909074,1775497834475,-1824.4793,0.00010598,2]
[419909075,1775497834485,-26429.5321,0.00010598,2]
[419909076,1775497834496,-150.0,0.00010598,2]
[419909077,1775497834505,-1100.0,0.000106,3]
[419909078,1775497834515,-150.0,0.00010608,2]
[419909079,1775497834526,-150.0,0.00010615,2]
[419909080,1775497834535,-150.0,0.00010615,2]
[419909081,1775497834545,-150.0,0.0001062,2]
[419909082,1775497834555,-150.0,0.00010626,2]
[419909083,1775497834565,-150.0,0.00010628,2]
[419909084,1775497834575,-150.0,0.00010631,2]
[419909085,1775497834584,-150.0,0.00010645,2]
[419909086,1775497834594,-150.0,0.00010649,2]
[419909087,1775497834604,-150.0,0.00010651,2]
[419909088,1775497834614,-150.0,0.00010651,2]
[419909089,1775497834624,-133.53326646,0.00010655,2]
[419909097,1775497838231,-16.46673354,0.00010655,2]
[419909098,1775497838240,-191.0,0.00010656,2]
[419909099,1775497838250,-150.0,0.0001066,2]
[419909100,1775497838259,-150.0,0.0001066,2]
[419909101,1775497838269,-150.0,0.00010664,2]
[419909102,1775497838278,-150.0,0.0001067,2]
[419909103,1775497838287,-150.0,0.00010675,2]
[419909104,1775497838296,-370.0,0.00010678,2]
[419909105,1775497838308,-150.0,0.00010687,2]
[419909106,1775497838317,-150.0,0.00010687,2]
[419909107,1775497838326,-150.0,0.0001069,2]
[419909108,1775497838336,-150.0,0.00010691,2]
[419909109,1775497838345,-150.0,0.00010693,2]
[419909110,1775497838355,-150.0,0.00010696,2]
[419909111,1775497838366,-2500.0,0.00010697,2]
[419909112,1775497838375,-4012.1343,0.00010698,2]
[419909113,1775497838386,-150.0,0.00010699,2]
[419909114,1775497838396,-5491.6129,0.000107,2]
[419909115,1775497838405,-150.0,0.000107,2]
[419909116,1775497838414,-418.64333017,0.000107,2]
[419909117,1775497838424,-2200.0,0.000107,3]
[419909118,1775497838433,-5131.61754786,0.000107,2]
[419909119,1775497838443,-150.0,0.00010705,2]
[419909120,1775497838452,-150.0,0.00010711,2]
[419909121,1775497838462,-150.0,0.00010723,2]
[419909122,1775497838471,-150.0,0.00010723,2]
[419909123,1775497838480,-150.0,0.00010725,2]
[419909124,1775497838490,-150.0,0.00010727,2]
[419909125,1775497838499,-150.0,0.00010727,2]
[419909126,1775497838508,-1069.49567053,0.00010729,2]
[419909127,1775497838517,-150.0,0.00010729,2]
[419909128,1775497838527,-150.0,0.00010732,2]
[419909129,1775497838536,-150.0,0.00010735,2]
[419909130,1775497838546,-150.0,0.00010753,2]
[419909131,1775497838557,-150.0,0.00010759,2]
[419909132,1775497838566,-150.0,0.0001076,2]
[419909133,1775497838576,-150.0,0.00010761,2]
[419909134,1775497838586,-150.0,0.00010762,2]
[419909136,1775497838595,-150.0,0.00010765,2]
[419909138,1775497838605,-1924.0899,0.00010767,2]
[419909140,1775497838614,-500.68172956,0.00010773,2]
[419909142,1775497838624,-500.0,0.00010773,2]
[419909144,1775497838633,-500.0,0.00010773,2]
[419909146,1775497838643,-500.95520336,0.00010773,2]
[419909148,1775497838652,-549.675327,0.00010773,2]
[419909150,1775497838662,-500.62896533,0.00010773,2]
[419909152,1775497838672,-500.29772521,0.00010773,2]
[419909154,1775497838681,-500.0,0.00010773,2]
[419909156,1775497838690,-1145.19,0.00010773,2]
[419909159,1775497838699,-150.0,0.00010774,2]
[419909163,1775497838708,-500.0,0.00010792,2]
[419909166,1775497838718,-500.0,0.00010792,2]
[419909168,1775497838727,-500.0,0.00010792,2]
[419909170,1775497838735,-500.0,0.00010792,2]
[419909172,1775497838745,-500.0,0.00010792,2]
[419909174,1775497838754,-500.0,0.00010792,2]
[419909176,1775497838763,-500.0,0.00010792,2]
[419909178,1775497838772,-500.0,0.00010792,2]
[419909180,1775497838781,-500.0,0.00010792,2]
[419909182,1775497838790,-500.0,0.00010792,2]
[419909184,1775497838799,-500.0,0.00010792,2]
[419909186,1775497838808,-500.0,0.00010792,2]
[419909188,1775497838817,-151.0,0.00010792,2]
[419909190,1775497838826,-500.0,0.00010792,2]
[419909192,1775497838835,-151.0,0.00010792,2]
[419909193,1775497838845,-151.0,0.00010792,2]
[419909196,1775497838856,-151.0,0.00010792,2]
[419909198,1775497838865,-500.0,0.00010792,2]
[419909200,1775497838875,-151.0,0.00010792,2]
[419909202,1775497838883,-151.0,0.00010792,2]
[419909204,1775497838893,-500.0,0.00010792,2]
[419909206,1775497838902,-151.0,0.00010792,2]
[419909208,1775497838911,-151.0,0.00010792,2]
[419909210,1775497838920,-500.0,0.00010792,2]
[419909212,1775497838929,-151.0,0.00010792,2]
[419909214,1775497838938,-151.0,0.00010792,2]
[419909216,1775497838948,-500.0,0.00010792,2]
[419909218,1775497838957,-151.0,0.00010792,2]
[419909220,1775497838966,-151.0,0.00010792,2]
[419909222,1775497838976,-151.0,0.00010792,2]
[419909224,1775497838985,-500.0,0.00010792,2]
[419909226,1775497838994,-151.0,0.00010792,2]
[419909228,1775497839003,-151.0,0.00010792,2]
[419909230,1775497839012,-500.0,0.00010792,2]
[419909232,1775497839021,-151.0,0.00010792,2]
[419909234,1775497839030,-151.0,0.00010792,2]
[419909236,1775497839040,-500.0,0.00010792,2]
[419909238,1775497839049,-200.0,0.00010792,2]
[419909240,1775497839059,-151.0,0.00010792,2]
[419909241,1775497839069,-151.0,0.00010792,2]
[419909243,1775497839078,-500.0,0.00010792,2]
[419909245,1775497839088,-151.0,0.00010792,2]
[419909248,1775497839098,-500.0,0.00010792,2]
[419909250,1775497839107,-151.0,0.00010792,2]
[419909252,1775497839117,-151.0,0.00010792,2]
[419909254,1775497839126,-500.0,0.00010792,2]
[419909256,1775497839135,-151.0,0.00010792,2]
[419909258,1775497839145,-151.0,0.00010792,2]
[419909260,1775497839154,-500.0,0.00010792,2]
[419909262,1775497839163,-151.0,0.00010792,2]
[419909264,1775497839173,-151.0,0.00010792,2]
[419909266,1775497839182,-151.0,0.00010792,2]
[419909268,1775497839191,-151.0,0.00010792,2]
[419909270,1775497839200,-151.0,0.00010792,2]
[419909272,1775497839209,-151.0,0.00010792,2]
[419909274,1775497839219,-151.0,0.00010792,2]
[419909276,1775497839228,-151.0,0.00010792,2]
[419909278,1775497839237,-151.0,0.00010792,2]
[419909280,1775497839247,-1337.30371513,0.00010792,2]
[419909282,1775497839257,-188.59451977,0.00010795,2]
[419909284,1775497839266,-251.40048736,0.00010795,2]
[419909286,1775497839275,-260.63760904,0.00010795,2]
[419909287,1775497839286,-151.81936319,0.00010795,2]
[419909289,1775497839295,-269.13759154,0.00010795,2]
[419909292,1775497839306,-150.56974381,0.00010795,2]
[419909294,1775497839316,-151.17477809,0.00010795,2]
[419909296,1775497839325,-150.4044031,0.00010795,2]
[419909298,1775497839334,-164.21532831,0.00010795,2]
[419909300,1775497839343,-207.13368262,0.00010795,2]
[419909302,1775497839355,-189.10004975,0.00010795,2]
[419909304,1775497839364,-249.17338742,0.00010795,2]
[419909306,1775497839373,-151.0,0.00010797,2]
[419909308,1775497839382,-151.0,0.00010797,2]
[419909310,1775497839392,-28562.67032287,0.00010798,2]
[419909312,1775497839401,-211120.19931012,0.00010798,2]
[419909314,1775497839410,-155.0,0.00010798,2]
[419909316,1775497839419,-1025.01196795,0.00010799,3]
[419909318,1775497839429,-222.56808838,0.00010799,2]
[419909320,1775497839437,-23529.9023,0.000108,2]
[419909322,1775497839447,-1000.0,0.000108,2]
[419909324,1775497839457,-3400.0,0.000108,3]
[419909326,1775497839467,-227.0,0.00010873,2]
[419909328,1775497839476,-463.73,0.00010881,2]
[419909330,1775497839485,-3070.00040818,0.000109,2]
[419909332,1775497839495,-4500.0,0.000109,3]
[419909334,1775497839505,-255.0,0.00010902,2]
[419909336,1775497839514,-500.0,0.00010959,2]
[419909338,1775497839523,-222.29236238,0.00010959,2]
[419909340,1775497839532,-150.0,0.00010959,2]
[419909342,1775497839541,-1161.92,0.00010959,2]
[419909344,1775497839551,-35265.59752164,0.00011,2]
[419909346,1775497839561,-1145.19,0.00011047,2]
[419909348,1775497839570,-27455.55370405,0.00011099,2]
[419909350,1775497839580,-16509.52725851,0.00011099,2]
[419909352,1775497839589,-16509.52725849,0.00011099,2]
[419909354,1775497839598,-1000.0,0.00011121,2]
[419909356,1775497839607,-501.75389505,0.00011121,2]
[419909358,1775497839616,-500.25334159,0.00011121,2]
[419909360,1775497839625,-1000.0,0.00011121,2]
[419909362,1775497839634,-461.10773956,0.00011121,2]
[419909364,1775497839643,-704.26825693,0.00011121,2]
[419909366,1775497839652,-2000.0,0.00011122,2]
[419909368,1775497839661,-155.0,0.00011158,2]
[419909370,1775497839670,-151.0,0.00011265,2]
[419909372,1775497839679,-27455.55370398,0.00011276,2]
[419909374,1775497839688,-313.09,0.00011281,2]
[419909376,1775497839698,-9999.99,0.00011281,2]
[419909378,1775497839707,-150.99,0.00011281,2]
[419909380,1775497839716,-9999.99,0.00011281,2]
[419909382,1775497839725,-150.99,0.00011281,2]
[419909384,1775497839735,-999.99,0.00011281,2]
[419909386,1775497839744,-4357.04,0.00011281,2]
[419909388,1775497839753,-995.86,0.00011281,2]
[419909390,1775497839763,-1209.51,0.00011281,2]
[419909392,1775497839772,-500.0,0.00011321,2]
[419909394,1775497839782,-1145.19,0.00011321,2]
[419909396,1775497839791,-200.0,0.0001134,2]
[419909398,1775497839800,-629.47078979,0.0001134,2]
[419909400,1775497839810,-2249.910035,0.00011356,2]
[419909402,1775497839819,-637.15546836,0.00011375,2]
[419909404,1775497839828,-3070.00040818,0.00011441,2]
[419909407,1775497839842,-1341.0,0.00011473,2]
[419909409,1775497839851,-3216.46,0.00011507,2]
[419909411,1775497839861,-155.0,0.00011518,2]
[419909413,1775497839870,-170.54262,0.00011557,2]
[419909415,1775497839879,-418.64333016,0.00011567,2]
[419909417,1775497839888,-150.0,0.00011593,2]
[419909419,1775497839898,-150.0,0.00011593,2]
[419909421,1775497839907,-153.0,0.00011593,2]
[419909423,1775497839916,-1145.19,0.00011595,2]
[419909425,1775497839925,-300.0,0.0001163,2]
[419909427,1775497839934,-502.0227864,0.00011648,2]
[419909429,1775497839943,-600.0,0.00011657,2]
[419909430,1775497839952,-600.0,0.00011657,2]
[419909431,1775497839962,-600.0,0.00011657,2]
[419909432,1775497839971,-600.0,0.00011657,2]
[419909433,1775497839980,-600.0,0.00011657,2]
[419909434,1775497839990,-195.0,0.00011657,2]
[419909435,1775497840000,-195.0,0.00011657,2]
[419909436,1775497840009,-195.0,0.00011657,2]
[419909437,1775497840019,-195.0,0.00011657,2]
[419909438,1775497840028,-195.0,0.00011657,2]
[419909439,1775497840037,-1680.0,0.00011657,2]
[419909440,1775497840047,-500.0,0.00011668,2]
[419909441,1775497840056,-1500.0,0.00011668,2]
[419909442,1775497840066,-16509.52725849,0.00011698,2]
[419909443,1775497840075,-27455.55370398,0.00011854,2]
[419909444,1775497840084,-1145.19,0.00011868,2]
[419909445,1775497840094,-155.0,0.00011878,2]
[419909446,1775497840103,-200.0,0.00011888,2]
[419909447,1775497840113,-433.0,0.00011993,2]
[419909448,1775497840123,-2224.19,0.00012055,2]
[419909449,1775497840132,-168.2502,0.000121,2]
[419909451,1775497840141,-1145.19,0.00012142,2]
[419909452,1775497840151,-3070.00040818,0.00012184,2]
[419909454,1775497840160,-152.0,0.00012215,3]
[419909456,1775497840169,-1500.0,0.00012216,2]
[419909459,1775497840179,-16509.52725849,0.00012299,2]
[419909461,1775497840189,-2000.0,0.00012358,2]
[419909463,1775497840197,-1145.19,0.00012416,2]
[419909465,1775497840207,-152.0,0.00012424,4]
[419909467,1775497840216,-27455.55370398,0.00012432,2]
[419909469,1775497840225,-418.64333016,0.00012433,2]
[419909471,1775497840234,-200.0,0.00012436,2]
[419909473,1775497840243,-200.0,0.00012487,2]
[419909475,1775497840251,-200.0,0.00012487,2]
[419909477,1775497840261,-200.0,0.00012487,2]
[419909478,1775497840270,-200.0,0.00012487,2]
[419909480,1775497840279,-200.0,0.00012487,2]
[419909483,1775497840289,-200.0,0.00012487,2]
[419909485,1775497840299,-200.0,0.00012487,2]
[419909487,1775497840309,-200.0,0.00012487,2]
[419909489,1775497840318,-252.0,0.00012487,2]
[419909491,1775497840327,-152.0,0.00012632,5]
[419909493,1775497840336,-1145.2498952,0.0001269,2]
[419909495,1775497840345,-2351.0,0.00012822,2]
[419909497,1775497840354,-152.0,0.00012841,6]
[419909498,1775497840363,-16509.52725849,0.00012899,2]
[419909500,1775497840374,-3070.00040818,0.00012927,2]
[419909502,1775497840383,-155.0,0.00012958,2]
[419909504,1775497840393,-200.0,0.00012984,2]
[419909507,1775497840403,-1500.0,0.00013002,2]
[419909509,1775497840413,-27455.55370398,0.0001301,2]
[419909511,1775497840423,-152.0,0.0001305,7]
[419909513,1775497840432,-500.0,0.000131,2]
[419909515,1775497840441,-583.0,0.00013123,2]
[419909517,1775497840450,-736.0,0.00013192,2]
[419909519,1775497840460,-152.0,0.00013258,8]
[419909521,1775497840469,-418.64333016,0.000133,2]
[419909523,1775497840479,-188.7209,0.000134,2]
[419909525,1775497840488,-152.0,0.00013467,9]
[419909527,1775497840497,-16509.52725849,0.00013499,2]
[419909529,1775497840506,-160.0,0.0001351,2]
[419909531,1775497840515,-160.0,0.00013512,2]
[419909532,1775497840524,-151.6719064,0.00013531,2]
[419909534,1775497840534,-200.0,0.00013532,2]
[419909536,1775497840543,-27455.55370398,0.00013588,2]
[419909538,1775497840552,-2000.0,0.00013594,2]
[419909541,1775497840561,-3070.00040818,0.00013671,2]
[419909543,1775497840571,-152.0,0.00013676,10]
[419909545,1775497840580,-500.0,0.00013698,2]
[419909547,1775497840590,-500.0,0.00013698,2]
[419909549,1775497840599,-500.0,0.00013698,2]
[419909551,1775497840609,-500.0,0.00013698,2]
[419909553,1775497840618,-500.0,0.00013698,2]
[419909555,1775497840627,-500.0,0.00013698,2]
[419909557,1775497840636,-500.0,0.00013698,2]
[419909559,1775497840646,-500.0,0.00013698,2]
[419909561,1775497840655,-500.0,0.00013698,2]
[419909563,1775497840664,-500.0,0.00013698,2]
[419909564,1775497840673,-500.0,0.00013698,2]
[419909567,1775497840682,-500.0,0.00013698,2]
[419909568,1775497840691,-228.92,0.00013698,2]
[419909570,1775497840701,-500.0,0.00013698,2]
[419909572,1775497840710,-500.0,0.00013698,2]
[419909574,1775497840720,-500.0,0.00013698,2]
[419909577,1775497840730,-500.0,0.00013698,2]
[419909579,1775497840739,-500.0,0.00013698,2]
[419909581,1775497840749,-500.0,0.00013698,2]
[419909583,1775497840758,-500.0,0.00013698,2]
[419909585,1775497840768,-500.0,0.00013698,2]
[419909587,1775497840779,-500.0,0.00013698,2]
[419909589,1775497840789,-500.0,0.00013698,2]
[419909591,1775497840799,-500.0,0.00013698,2]
[419909593,1775497840808,-500.0,0.00013698,2]
[419909595,1775497840819,-500.0,0.00013698,2]
[419909597,1775497840829,-500.0,0.00013698,2]
[419909599,1775497840839,-500.0,0.00013698,2]
[419909601,1775497840849,-500.0,0.00013698,2]
[419909603,1775497840859,-500.0,0.00013698,2]
[419909605,1775497840869,-500.0,0.00013698,2]
[419909607,1775497840879,-500.0,0.00013698,2]
[419909608,1775497840888,-500.0,0.00013698,2]
[419909609,1775497840897,-500.0,0.00013698,2]
[419909610,1775497840906,-500.0,0.00013698,2]
[419909611,1775497840915,-500.0,0.00013698,2]
[419909612,1775497840925,-500.0,0.00013698,2]
[419909613,1775497840934,-500.0,0.00013698,2]
[419909614,1775497840943,-500.0,0.00013698,2]
[419909615,1775497840952,-500.0,0.00013698,2]
[419909616,1775497840961,-500.0,0.00013698,2]
[419909617,1775497840970,-500.0,0.00013698,2]
[419909618,1775497840980,-500.0,0.00013698,2]
[419909619,1775497840990,-500.0,0.00013698,2]
[419909620,1775497840999,-500.0,0.00013698,2]
[419909621,1775497841008,-500.0,0.00013698,2]
[419909622,1775497841018,-500.0,0.00013698,2]
[419909623,1775497841027,-500.0,0.00013698,2]
[419909624,1775497841036,-500.0,0.00013698,2]
[419909625,1775497841045,-500.0,0.00013698,2]
[419909626,1775497841054,-502.76097898,0.00013698,2]
[419909627,1775497841063,-500.0,0.00013698,2]
[419909628,1775497841073,-507.01970036,0.00013698,2]
[419909629,1775497841083,-500.0,0.00013698,2]
[419909630,1775497841092,-500.0,0.00013698,2]
[419909631,1775497841101,-500.0,0.00013698,2]
[419909632,1775497841111,-500.0,0.00013698,2]
[419909633,1775497841434,-500.0,0.00013698,2]
[419909634,1775497841447,-500.0,0.00013698,2]
[419909635,1775497841456,-500.0,0.00013698,2]
[419909636,1775497841465,-500.0,0.00013698,2]
[419909637,1775497841478,-500.0,0.00013698,2]
[419909638,1775497841487,-500.0,0.00013698,2]
[419909639,1775497841496,-500.0,0.00013698,2]
[419909640,1775497841505,-500.0,0.00013698,2]
[419909641,1775497841514,-500.0,0.00013698,2]
[419909642,1775497841524,-500.0,0.00013698,2]
[419909643,1775497841533,-500.0,0.00013698,2]
[419909644,1775497841542,-500.0,0.00013698,2]
[419909645,1775497841552,-500.0,0.00013698,2]
[419909646,1775497841561,-500.0,0.00013698,2]
[419909647,1775497841570,-500.0,0.00013698,2]
[419909648,1775497841579,-500.0,0.00013698,2]
[419909649,1775497841588,-500.0,0.00013698,2]
[419909650,1775497841598,-500.0,0.00013698,2]
[419909651,1775497841607,-500.0,0.00013698,2]
[419909652,1775497841616,-500.0,0.00013698,2]
[419909653,1775497841626,-500.0,0.00013698,2]
[419909654,1775497841635,-500.0,0.00013698,2]
[419909655,1775497841644,-500.0,0.00013698,2]
[419909656,1775497841654,-500.0,0.00013698,2]
[419909657,1775497841663,-500.0,0.00013698,2]
[419909658,1775497841672,-500.0,0.00013698,2]
[419909659,1775497841681,-500.0,0.00013698,2]
[419909660,1775497841691,-500.0,0.00013698,2]
[419909661,1775497841700,-500.0,0.00013698,2]
[419909662,1775497841710,-500.0,0.00013698,2]
[419909663,1775497841719,-500.0,0.00013698,2]
[419909664,1775497841728,-500.0,0.00013698,2]
[419909665,1775497841738,-500.0,0.00013698,2]
[419909666,1775497841747,-500.0,0.00013698,2]
[419909667,1775497841756,-500.0,0.00013698,2]
[419909668,1775497841765,-500.0,0.00013698,2]
[419909669,1775497841774,-500.0,0.00013698,2]
[419909670,1775497841783,-500.0,0.00013698,2]
[419909671,1775497841792,-500.0,0.00013698,2]
[419909672,1775497841801,-500.0,0.00013698,2]
[419909673,1775497841811,-500.0,0.00013698,2]
[419909674,1775497841820,-500.0,0.00013698,2]
[419909675,1775497841829,-500.0,0.00013698,2]
[419909676,1775497841839,-500.0,0.00013698,2]
[419909677,1775497841849,-607.43953795,0.00013698,2]
[419909678,1775497841859,-500.0,0.00013698,2]
[419909679,1775497841868,-500.0,0.00013698,2]
[419909680,1775497841878,-500.0,0.00013698,2]
[419909681,1775497841887,-500.0,0.00013698,2]
[419909682,1775497841897,-500.0,0.00013698,2]
[419909683,1775497841906,-500.0,0.00013698,2]
[419909684,1775497841915,-500.0,0.00013698,2]
[419909685,1775497841925,-500.0,0.00013698,2]
[419909686,1775497841935,-609.59532014,0.00013698,2]
[419909687,1775497841943,-500.0,0.00013698,2]
[419909688,1775497841953,-500.0,0.00013698,2]
[419909689,1775497841962,-500.0,0.00013698,2]
[419909690,1775497841972,-500.0,0.00013698,2]
[419909691,1775497841981,-500.0,0.00013698,2]
[419909692,1775497841991,-500.0,0.00013698,2]
[419909693,1775497842000,-500.0,0.00013698,2]
[419909694,1775497842009,-500.0,0.00013698,2]
[419909695,1775497842018,-500.0,0.00013698,2]
[419909696,1775497842028,-500.0,0.00013698,2]
[419909697,1775497842037,-500.0,0.00013698,2]
[419909698,1775497842047,-500.0,0.00013698,2]
[419909699,1775497842057,-500.0,0.00013698,2]
[419909700,1775497842066,-500.0,0.00013698,2]
[419909701,1775497842076,-500.0,0.00013698,2]
[419909702,1775497842085,-500.0,0.00013698,2]
[419909703,1775497842094,-500.0,0.00013698,2]
[419909704,1775497842103,-500.0,0.00013698,2]
[419909705,1775497842113,-500.0,0.00013698,2]
[419909706,1775497842122,-500.0,0.00013698,2]
[419909707,1775497842131,-500.0,0.00013698,2]
[419909708,1775497842142,-500.0,0.00013698,2]
[419909709,1775497842151,-500.0,0.00013698,2]
[419909710,1775497842160,-500.0,0.00013698,2]
[419909711,1775497842170,-500.0,0.00013698,2]
[419909712,1775497842179,-500.0,0.00013698,2]
[419909713,1775497842189,-500.0,0.00013698,2]
[419909714,1775497842198,-500.0,0.00013698,2]
[419909715,1775497842207,-500.0,0.00013698,2]
[419909716,1775497842217,-500.0,0.00013698,2]
[419909717,1775497842226,-500.0,0.00013698,2]
[419909718,1775497842235,-500.0,0.00013698,2]
[419909719,1775497842245,-500.0,0.00013698,2]
[419909720,1775497842255,-500.0,0.00013698,2]
[419909721,1775497842264,-500.0,0.00013698,2]
[419909722,1775497842273,-500.0,0.00013698,2]
[419909723,1775497842283,-500.0,0.00013698,2]
[419909724,1775497842293,-500.0,0.00013698,2]
[419909725,1775497842302,-500.0,0.00013698,2]
[419909726,1775497842312,-500.0,0.00013698,2]
[419909727,1775497842321,-500.0,0.00013698,2]
[419909728,1775497842330,-500.0,0.00013698,2]
[419909729,1775497842340,-500.0,0.00013698,2]
[419909730,1775497842349,-500.0,0.00013698,2]
[419909731,1775497842359,-500.0,0.00013698,2]
[419909732,1775497842368,-500.0,0.00013698,2]
[419909733,1775497842377,-500.0,0.00013698,2]